fUSD/lending_fUSD_20240817
["ID","MTS","AMOUNT","RATE_DAILY","PERIOD"]
[335169718,1723926638065,-6968.05140681,0.00010899,2]
[335169719,1723926638074,-15559.33265935,0.00010899,2]
[335169720,1723926638083,-15559.33265935,0.00010899,2]
[335169721,1723926638093,-151.0,0.00010899,2]
[335169722,1723926638102,-151.0,0.00010899,2]
[335169723,1723926638111,-15559.33265935,0.00010899,2]
[335169724,1723926638120,-151.0,0.00010899,2]
[335169725,1723926638129,-151.0,0.00010899,2]
[335169726,1723926638138,-151.0,0.00010899,2]
[335169727,1723926638147,-151.0,0.00010899,2]
[335169728,1723926638155,-151.0,0.00010899,2]
[335169729,1723926638164,-151.217753,0.00010899,2]
[335169730,1723926638173,-15559.33265935,0.00010899,2]
[335169731,1723926638182,-151.0,0.00010899,2]
[335169732,1723926638192,-151.0,0.00010899,2]
[335169733,1723926638203,-151.0,0.00010899,2]
[335169734,1723926638214,-151.0,0.00010899,2]
[335169735,1723926638223,-8760.12688349,0.00010899,2]
[335169737,1723926638234,-6799.20577586,0.00010899,2]
[335169739,1723926638243,-15559.33265935,0.00010899,2]
[335169741,1723926638252,-181.314699,0.00010899,2]
[335169743,1723926638262,-181.314699,0.00010899,2]
[335169745,1723926638270,-181.314699,0.00010899,2]
[335169747,1723926638279,-181.314699,0.00010899,2]
[335169749,1723926638291,-151.0,0.00010899,2]
[335169751,1723926638299,-151.0,0.00010899,2]
[335169753,1723926638308,-197.7733,0.00010899,2]
[335169755,1723926638317,-181.314699,0.00010899,2]
[335169757,1723926638326,-181.314699,0.00010899,2]
[335169759,1723926638335,-181.314699,0.00010899,2]
[335169761,1723926638344,-181.314699,0.00010899,2]
[335169763,1723926638353,-151.0,0.00010899,2]
[335169765,1723926638363,-151.0,0.00010899,2]
[335169767,1723926638372,-151.436564,0.00010899,2]
[335169769,1723926638382,-151.0,0.00010899,2]
[335169771,1723926638391,-151.0,0.00010899,2]
[335169773,1723926638400,-151.0,0.00010899,2]
[335169775,1723926638409,-151.0,0.00010899,2]
[335169777,1723926638418,-151.0,0.00010899,2]
[335169779,1723926638428,-198.227468,0.00010899,2]
[335169781,1723926638437,-151.0,0.00010899,2]
[335169783,1723926638446,-399.023795,0.00010899,2]
[335169785,1723926638456,-399.023795,0.00010899,2]
[335169787,1723926638465,-151.0,0.00010899,2]
[335169789,1723926638474,-151.0,0.00010899,2]
[335169791,1723926638483,-151.307529,0.00010899,2]
[335169793,1723926638494,-151.0,0.00010899,2]
[335169795,1723926638503,-151.0,0.00010899,2]
[335169797,1723926638511,-560.85,0.00010899,2]
[335169799,1723926638520,-198.145608,0.00010899,2]
[335169801,1723926638530,-151.0,0.00010899,2]
[335169803,1723926638539,-151.0,0.00010899,2]
[335169804,1723926638548,-151.0,0.00010899,2]
[335169806,1723926638557,-151.0,0.00010899,2]
[335169808,1723926638567,-151.0,0.00010899,2]
[335169810,1723926638576,-151.0,0.00010899,2]
[335169812,1723926638585,-151.0,0.00010899,2]
[335169814,1723926638596,-151.0,0.00010899,2]
[335169816,1723926638604,-217.590112,0.00010899,2]
[335169818,1723926638613,-151.0,0.00010899,2]
[335169820,1723926638622,-151.0,0.00010899,2]
[335169822,1723926638631,-151.0,0.00010899,2]
[335169824,1723926638640,-151.0,0.00010899,2]
[335169826,1723926638649,-151.0,0.00010899,2]
[335169828,1723926638657,-151.0,0.00010899,2]
[335169830,1723926638666,-151.0,0.00010899,2]
[335169832,1723926638675,-151.0,0.00010899,2]
[335169834,1723926638683,-151.0,0.00010899,2]
[335169836,1723926638692,-151.0,0.00010899,2]
[335169838,1723926638701,-151.0,0.00010899,2]
[335169840,1723926638710,-294.107116,0.00010899,2]
[335169842,1723926638719,-254.69667,0.00010899,2]
[335169843,1723926638730,-168.953936,0.00010899,2]
[335169845,1723926638739,-168.953936,0.00010899,2]
[335169847,1723926638747,-168.953936,0.00010899,2]
[335169849,1723926638757,-168.953936,0.00010899,2]
[335169851,1723926638766,-168.953936,0.00010899,2]
[335169853,1723926638775,-168.953936,0.00010899,2]
[335169855,1723926638785,-168.953936,0.00010899,2]
[335169856,1723926638794,-168.953936,0.00010899,2]
[335169857,1723926638802,-168.953936,0.00010899,2]
[335169858,1723926638811,-168.953936,0.00010899,2]
[335169859,1723926638819,-168.953936,0.00010899,2]
[335169860,1723926638829,-168.953936,0.00010899,2]
[335169861,1723926638838,-168.953936,0.00010899,2]
[335169862,1723926638847,-168.953936,0.00010899,2]
[335169863,1723926638856,-151.0,0.00010899,2]
[335169864,1723926638865,-151.0,0.00010899,2]
[335169866,1723926638874,-151.0,0.00010899,2]
[335169868,1723926638882,-151.0,0.00010899,2]
[335169870,1723926638891,-151.0,0.00010899,2]
[335169872,1723926638901,-151.0,0.00010899,2]
[335169874,1723926638910,-151.0,0.00010899,2]
[335169876,1723926638919,-284.62213,0.00010899,2]
[335169878,1723926638927,-151.0,0.00010899,2]
[335169880,1723926638937,-151.0,0.00010899,2]
[335169882,1723926638946,-151.0,0.00010899,2]
[335169884,1723926638955,-151.0,0.00010899,2]
[335169886,1723926638964,-151.0,0.00010899,2]
[335169888,1723926638972,-151.0,0.00010899,2]
[335169890,1723926638982,-151.0,0.00010899,2]
[335169892,1723926638990,-151.0,0.00010899,2]
[335169894,1723926638999,-151.0,0.00010899,2]
[335169896,1723926639008,-151.0,0.00010899,2]
[335169898,1723926639017,-266.82914,0.00010899,2]
[335169900,1723926639026,-151.0,0.00010899,2]
[335169902,1723926639035,-151.0,0.00010899,2]
[335169903,1723926639043,-151.0,0.00010899,2]
[335169905,1723926639052,-151.0,0.00010899,2]
[335169907,1723926639061,-151.0,0.00010899,2]
[335169909,1723926639070,-151.0,0.00010899,2]
[335169911,1723926639079,-151.0,0.00010899,2]
[335169913,1723926639088,-151.0,0.00010899,2]
[335169915,1723926639097,-151.0,0.00010899,2]
[335169917,1723926639106,-270.58108,0.00010899,2]
[335169919,1723926639115,-151.0,0.00010899,2]
[335169921,1723926639124,-151.0,0.00010899,2]
[335169923,1723926639134,-151.0,0.00010899,2]
[335169925,1723926639145,-151.0,0.00010899,2]
[335169927,1723926639155,-151.0,0.00010899,2]
[335169929,1723926639163,-151.0,0.00010899,2]
[335169931,1723926639174,-197.871476,0.00010899,2]
[335169933,1723926639184,-151.0,0.00010899,2]
[335169935,1723926639195,-151.0,0.00010899,2]
[335169937,1723926639205,-209.566248,0.00010899,2]
[335169939,1723926639214,-234987.56961,0.00010899,2]
[335169941,1723926639222,-3000.0,0.000109,2]
[335169943,1723926639231,-5723.545,0.000109,2]
[335169945,1723926639241,-151.0,0.000109,2]
[335169947,1723926639250,-151.0,0.000109,2]
[335169949,1723926639259,-151.0,0.000109,2]
[335169951,1723926639268,-151.0,0.000109,2]
[335169953,1723926639278,-166.679118,0.000109,2]
[335169955,1723926639289,-151.0,0.000109,2]
[335169957,1723926639298,-151.0,0.000109,2]
[335169959,1723926639308,-151.0,0.000109,2]
[335169961,1723926639318,-151.0,0.000109,2]
[335169963,1723926639327,-151.0,0.000109,2]
[335169965,1723926639337,-151.0,0.000109,2]
[335169967,1723926639346,-151.0,0.000109,2]
[335169968,1723926639359,-151.0,0.000109,2]
[335169970,1723926639368,-151.0,0.000109,2]
[335169972,1723926639378,-164.14081489,0.000109,2]
[335169973,1723926639387,-171.85912976,0.000109,2]
[335169974,1723926639397,-15559.33265935,0.000109,2]
[335169975,1723926639407,-151.0,0.000109,2]
[335169976,1723926639416,-151.0,0.000109,2]
[335169977,1723926639426,-168.953936,0.000109,2]
[335169978,1723926639435,-168.953936,0.000109,2]
[335169979,1723926639444,-151.0,0.000109,2]
[335169980,1723926639454,-151.0,0.000109,2]
[335169981,1723926639464,-168.67727828,0.000109,2]
[335169982,1723926639473,-168.67727828,0.000109,2]
[335169983,1723926639482,-168.67727828,0.000109,2]
[335169984,1723926639495,-168.67727828,0.000109,2]
[335169985,1723926639504,-168.67727828,0.000109,2]
[335169986,1723926639513,-202.12,0.000109,2]
[335169987,1723926639523,-201.78608962,0.000109,2]
[335169988,1723926639532,-500.0,0.00010914,2]
[335169989,1723926639542,-150.0,0.00010946,2]
[335169990,1723926639551,-150.0,0.00010946,2]
[335169991,1723926639561,-150.0,0.00010946,2]
[335169992,1723926639570,-150.0,0.00010946,2]
[335169993,1723926639581,-150.0,0.00010946,2]
[335169994,1723926639590,-150.0,0.00010946,2]
[335169995,1723926639600,-3000.0,0.00010946,2]
[335169996,1723926639613,-169.70524549,0.00010956,2]
[335169997,1723926639622,-500.0,0.00010957,2]
[335169998,1723926639632,-500.0,0.00010957,2]
[335169999,1723926639641,-1910.0,0.00010958,2]
[335170000,1723926639650,-764.055,0.00010958,2]
[335170001,1723926639660,-491.1251377,0.00010958,2]
[335170002,1723926639669,-500.0,0.00010958,2]
[335170003,1723926639679,-500.0,0.00010958,2]
[335170004,1723926639688,-519.40523966,0.00010958,2]
[335170005,1723926639698,-500.0,0.00010958,2]
[335170006,1723926639708,-500.0,0.00010958,2]
[335170007,1723926639718,-500.0,0.00010958,2]
[335170008,1723926639728,-328.00283114,0.00010958,2]
[335170010,1723926639737,-500.0,0.00010958,2]
[335170012,1723926639746,-500.0,0.00010958,2]
[335170013,1723926639755,-500.0,0.00010958,2]
[335170015,1723926639765,-500.0,0.00010958,2]
[335170016,1723926639775,-500.0,0.00010958,2]
[335170017,1723926639785,-500.0,0.00010958,2]
[335170018,1723926639795,-500.0,0.00010958,2]
[335170019,1723926639805,-500.0,0.00010958,2]
[335170020,1723926639814,-500.0,0.00010958,2]
[335170021,1723926639824,-500.0,0.00010958,2]
[335170022,1723926639834,-183.23314245,0.00010958,2]
[335170023,1723926639845,-500.0,0.00010958,2]
[335170024,1723926639855,-500.0,0.00010958,2]
[335170025,1723926639864,-500.0,0.00010958,2]
[335170026,1723926639874,-500.0,0.00010958,2]
[335170027,1723926639884,-500.0,0.00010958,2]
[335170028,1723926639893,-500.0,0.00010958,2]
[335170029,1723926639903,-500.0,0.00010958,2]
[335170030,1723926639912,-500.0,0.00010958,2]
[335170031,1723926639922,-500.0,0.00010958,2]
[335170032,1723926639931,-500.0,0.00010958,2]
[335170033,1723926639940,-500.0,0.00010958,2]
[335170034,1723926639950,-500.0,0.00010958,2]
[335170035,1723926639960,-500.0,0.00010958,2]
[335170036,1723926639970,-500.0,0.00010958,2]
[335170037,1723926639980,-248.3746391,0.00010958,2]
[335170038,1723926639990,-500.0,0.00010958,2]
[335170039,1723926639999,-500.0,0.00010958,2]
[335170040,1723926640009,-500.0,0.00010958,2]
[335170041,1723926640018,-500.0,0.00010958,2]
[335170042,1723926640028,-500.0,0.00010958,2]
[335170043,1723926640039,-500.0,0.00010958,2]
[335170044,1723926640049,-500.0,0.00010958,2]
[335170045,1723926640058,-500.0,0.00010958,2]
[335170046,1723926640067,-500.0,0.00010958,2]
[335170047,1723926640076,-500.0,0.00010958,2]
[335170048,1723926640085,-500.0,0.00010958,2]
[335170049,1723926640094,-500.0,0.00010958,2]
[335170050,1723926640103,-500.0,0.00010958,2]
[335170051,1723926640113,-500.0,0.00010958,2]
[335170052,1723926640123,-500.0,0.00010958,2]
[335170053,1723926640133,-500.0,0.00010958,2]
[335170054,1723926640143,-500.0,0.00010958,2]
[335170055,1723926640152,-500.0,0.00010958,2]
[335170056,1723926640161,-500.0,0.00010958,2]
[335170057,1723926640171,-500.0,0.00010958,2]
[335170058,1723926640180,-500.0,0.00010958,2]
[335170059,1723926640190,-588.0,0.00010958,2]
[335170060,1723926640199,-500.0,0.00010958,2]
[335170061,1723926640209,-500.0,0.00010958,2]
[335170062,1723926640218,-500.0,0.00010958,2]
[335170063,1723926640228,-500.0,0.00010958,2]
[335170064,1723926640237,-500.0,0.00010958,2]
[335170065,1723926640247,-500.0,0.00010958,2]
[335170066,1723926640256,-500.0,0.00010958,2]
[335170067,1723926640265,-500.0,0.00010958,2]
[335170068,1723926640274,-500.0,0.00010958,2]
[335170069,1723926640284,-500.0,0.00010958,2]
[335170070,1723926640294,-500.0,0.00010958,2]
[335170071,1723926640303,-500.0,0.00010958,2]
[335170072,1723926640312,-500.0,0.00010958,2]
[335170073,1723926640322,-500.0,0.00010958,2]
[335170074,1723926640332,-151.0,0.00010958,2]
[335170075,1723926640501,-151.0,0.00010958,2]
[335170076,1723926640511,-151.0,0.00010958,2]
[335170077,1723926640522,-151.0,0.00010958,2]
[335170078,1723926640534,-151.0,0.00010958,2]
[335170079,1723926640544,-151.0,0.00010958,2]
[335170080,1723926640554,-151.0,0.00010958,2]
[335170081,1723926640565,-151.0,0.00010958,2]
[335170082,1723926640575,-151.0,0.00010958,2]
[335170083,1723926640584,-151.0,0.00010958,2]
[335170084,1723926640594,-151.0,0.00010958,2]
[335170085,1723926640603,-151.0,0.00010958,2]
[335170086,1723926640613,-272.89713,0.00010958,2]
[335170087,1723926640623,-151.0,0.00010958,2]
[335170088,1723926640632,-151.0,0.00010958,2]
[335170089,1723926640642,-151.0,0.00010958,2]
[335170090,1723926640651,-151.0,0.00010958,2]
[335170091,1723926640661,-151.0,0.00010958,2]
[335170092,1723926640670,-151.0,0.00010958,2]
[335170093,1723926640679,-151.0,0.00010958,2]
[335170094,1723926640689,-151.0,0.00010958,2]
[335170095,1723926640699,-151.0,0.00010958,2]
[335170096,1723926640709,-151.0,0.00010958,2]
[335170097,1723926640719,-151.0,0.00010958,2]
[335170098,1723926640729,-151.0,0.00010958,2]
[335170099,1723926640738,-151.0,0.00010958,2]
[335170101,1723926640749,-151.0,0.00010958,2]
[335170103,1723926640759,-151.0,0.00010958,2]
[335170105,1723926640768,-183.04432,0.00010958,2]
[335170107,1723926640776,-151.0,0.00010958,2]
[335170109,1723926640786,-151.0,0.00010958,2]
[335170111,1723926640796,-151.0,0.00010958,2]
[335170113,1723926640806,-187.815226,0.00010958,2]
[335170115,1723926640815,-289.361894,0.00010958,2]
[335170117,1723926640824,-289.361894,0.00010958,2]
[335170118,1723926640833,-289.361894,0.00010958,2]
[335170119,1723926640842,-289.361894,0.00010958,2]
[335170120,1723926640851,-151.0,0.00010958,2]
[335170121,1723926640861,-151.0,0.00010958,2]
[335170122,1723926640870,-151.0,0.00010958,2]
[335170123,1723926640879,-151.0,0.00010958,2]
[335170124,1723926640888,-151.0,0.00010958,2]
[335170125,1723926640897,-151.0,0.00010958,2]
[335170126,1723926640906,-151.0,0.00010958,2]
[335170128,1723926640915,-151.0,0.00010958,2]
[335170130,1723926640924,-151.0,0.00010958,2]
[335170132,1723926640933,-151.0,0.00010958,2]
[335170134,1723926640942,-151.0,0.00010958,2]
[335170136,1723926640952,-181.314699,0.00010958,2]
[335170138,1723926640961,-181.314699,0.00010958,2]
[335170139,1723926640970,-181.314699,0.00010958,2]
[335170141,1723926640979,-181.314699,0.00010958,2]
[335170143,1723926640988,-399.023795,0.00010958,2]
[335170145,1723926640997,-399.023795,0.00010958,2]
[335170147,1723926641007,-151.0,0.00010958,2]
[335170149,1723926641016,-151.0,0.00010958,2]
[335170151,1723926641026,-151.0,0.00010958,2]
[335170153,1723926641035,-151.0,0.00010958,2]
[335170154,1723926641048,-168.953936,0.00010958,2]
[335170156,1723926641057,-168.953936,0.00010958,2]
[335170158,1723926641066,-168.953936,0.00010958,2]
[335170160,1723926641075,-168.95393,0.00010958,2]
[335170162,1723926641084,-151.0,0.00010958,2]
[335170164,1723926641095,-151.0,0.00010958,2]
[335170166,1723926641104,-151.0,0.00010958,2]
[335170168,1723926641114,-151.0,0.00010958,2]
[335170170,1723926641123,-1500.0,0.00010959,2]
[335170172,1723926641133,-2000.0,0.00010959,2]
[335170174,1723926641143,-8374.53,0.00010959,2]
[335170176,1723926641152,-250.0,0.00010959,2]
[335170178,1723926641162,-893.38,0.00010959,2]
[335170180,1723926641171,-150.0,0.00010959,2]
[335170182,1723926641180,-177.294848,0.00010959,2]
[335170184,1723926641190,-151.0,0.00010959,2]
[335170186,1723926641200,-196.911495,0.00010959,2]
[335170188,1723926641210,-151.0,0.00010959,2]
[335170189,1723926641219,-151.0,0.00010959,2]
[335170191,1723926641229,-151.0,0.00010959,2]
[335170193,1723926641239,-151.0,0.00010959,2]
[335170195,1723926641249,-151.0,0.00010959,2]
[335170197,1723926641258,-151.0,0.00010959,2]
[335170199,1723926641268,-151.0,0.00010959,2]
[335170201,1723926641277,-289.361894,0.00010959,2]
[335170203,1723926641288,-289.361894,0.00010959,2]
[335170205,1723926641298,-151.0,0.00010959,2]
[335170207,1723926641307,-151.0,0.00010959,2]
[335170209,1723926641316,-151.0,0.00010959,2]
[335170211,1723926641326,-181.314699,0.00010959,2]
[335170213,1723926641335,-181.314699,0.00010959,2]
[335170215,1723926641344,-399.023795,0.00010959,2]
[335170217,1723926641354,-200.0,0.00010973,2]
[335170219,1723926641363,-200.0,0.00010973,2]
[335170221,1723926641373,-74084.0,0.00010986,2]
[335170223,1723926641383,-782.0,0.00010986,2]
[335170225,1723926641393,-580.0,0.00010986,2]
[335170227,1723926641403,-34075.0,0.00010986,2]
[335170229,1723926641412,-522.3682974,0.00010994,2]
[335170231,1723926641422,-151.0,0.00010994,2]
[335170233,1723926641432,-289.361894,0.00010994,2]
[335170235,1723926641441,-289.361894,0.00010994,2]
[335170236,1723926641450,-151.0,0.00010994,2]
[335170238,1723926641459,-151.0,0.00010994,2]
[335170240,1723926641468,-181.314699,0.00010994,2]
[335170242,1723926641478,-181.314699,0.00010994,2]
[335170245,1723926641491,-399.023795,0.00010994,2]
[335170247,1723926641500,-151.0,0.00010995,2]
[335170249,1723926641510,-299.926808,0.00010995,2]
[335170251,1723926641519,-11570.2498133,0.00010995,2]
[335170252,1723926641529,-2400.5582562,0.00010995,2]
[335170254,1723926641538,-4755.3328319,0.00010995,2]
[335170256,1723926641548,-26095.2633333,0.00010995,2]
[335170258,1723926641558,-151.0,0.00010996,2]
[335170260,1723926641567,-151.0,0.00010996,2]
[335170262,1723926641577,-151.0,0.00010996,2]
[335170264,1723926641585,-151.0,0.00010996,2]
[335170266,1723926641595,-339.41049098,0.00010997,2]
[335170268,1723926641605,-3363.08021351,0.00010998,2]
[335170270,1723926641614,-151.0,0.00010998,2]
[335170271,1723926641623,-151.0,0.00010998,2]
[335170273,1723926641633,-289.361894,0.00010998,2]
[335170275,1723926641642,-289.361894,0.00010998,2]
[335170277,1723926641651,-151.0,0.00010998,2]
[335170279,1723926641660,-151.0,0.00010998,2]
[335170281,1723926641669,-181.314699,0.00010998,2]
[335170283,1723926641679,-181.314699,0.00010998,2]
[335170285,1723926641688,-399.023795,0.00010998,2]
[335170287,1723926641698,-1089.55055981,0.00010999,3]
[335170289,1723926641707,-560.85,0.00010999,2]
[335170291,1723926641719,-560.85,0.00010999,2]
[335170293,1723926641729,-560.85,0.00010999,2]
[335170295,1723926641739,-194.82440423,0.00010999,2]
[335170297,1723926641748,-560.85,0.00010999,2]
[335170299,1723926641758,-560.85,0.00010999,2]
[335170301,1723926641767,-560.85,0.00010999,2]
[335170303,1723926641776,-560.85,0.00010999,2]
[335170305,1723926641785,-560.85,0.00010999,2]
[335170307,1723926641794,-560.85,0.00010999,2]
[335170309,1723926641804,-560.85,0.00010999,2]
[335170311,1723926641813,-560.85,0.00010999,2]
[335170312,1723926641822,-560.85,0.00010999,2]
[335170314,1723926641832,-560.85,0.00010999,2]
[335170316,1723926641841,-500.0,0.00010999,2]
[335170318,1723926641850,-560.85,0.00010999,2]
[335170320,1723926641859,-500.0,0.00010999,2]
[335170322,1723926641869,-560.85,0.00010999,2]
[335170324,1723926641878,-413.19045995,0.00010999,2]
[335170326,1723926641887,-560.85,0.00010999,2]
[335170328,1723926641896,-560.85,0.00010999,2]
[335170329,1723926641906,-560.85,0.00010999,2]
[335170331,1723926641915,-560.85,0.00010999,2]
[335170333,1723926641925,-560.85,0.00010999,2]
[335170335,1723926641934,-560.85,0.00010999,2]
[335170337,1723926641944,-560.85,0.00010999,2]
[335170339,1723926641953,-560.93298255,0.00010999,2]
[335170341,1723926641963,-500.0,0.00010999,2]
[335170343,1723926641972,-367.71,0.00010999,2]
[335170344,1723926641982,-953.0,0.00010999,2]
[335170346,1723926641991,-562858.31116428,0.00011,2]
[335170348,1723926642001,-1517780.52870386,0.00011,2]
[335170351,1723926642018,-405130.1777722,0.00011,2]
[335170353,1723926642029,-3936.04611518,0.00011,2]
[335170358,1723926642070,-759.31654972,0.00011,2]
[335170359,1723926642082,-12921.63839813,0.00011,2]
[335170360,1723926642096,-296.98938335,0.00011,2]
[335170361,1723926642107,-353.90000008,0.00011,2]
[335170362,1723926642118,-199296.60798903,0.00011,2]
[335170363,1723926642130,-2031852.92375181,0.00011,2]
[335170364,1723926642140,-2401873.47993643,0.00011,2]
[335170366,1723926642149,-1168760.76281294,0.00011,2]
[335170368,1723926642159,-784954.77175421,0.00011,2]
[335170370,1723926642168,-2000.0,0.00011,2]
[335170371,1723926642177,-280024.94485813,0.00011,2]
[335170373,1723926642186,-2000.0,0.00011,2]
[335170375,1723926642195,-1840884.81945007,0.00011,2]
[335170378,1723926642214,-600.0,0.00011,2]
[335170380,1723926642226,-1224.96970469,0.00011,2]
[335170382,1723926642237,-5029.4305011,0.00011,2]
[335170384,1723926642249,-14669.655,0.00011,2]
[335170387,1723926642260,-696.01442306,0.00011,2]
[335170389,1723926642272,-372.50946649,0.00011,2]
[335170391,1723926642283,-7659.00000018,0.00011,2]
[335170393,1723926642295,-550.1564575,0.00011,2]
[335170395,1723926642306,-1243.6044221,0.00011,2]
[335170397,1723926642318,-892.40355142,0.00011,2]
[335170399,1723926642329,-760.32601188,0.00011,2]
[335170437,1723926643066,-419.87653924,0.00011,2]
[335170438,1723926643078,-457.46955249,0.00011,2]
[335170439,1723926643089,-516.8256799,0.00011,2]
[335170440,1723926643100,-6950.22205377,0.00011,2]
[335170441,1723926643111,-834.92804833,0.00011,2]
[335170442,1723926643123,-296.95776435,0.00011,2]
[335170443,1723926643134,-566.62860673,0.00011,2]
[335170444,1723926643145,-623.2797952,0.00011,2]
[335170445,1723926643156,-655.16092701,0.00011,2]
[335170446,1723926643168,-7059.3,0.00011,2]
[335170447,1723926643179,-253.88923684,0.00011,2]
[335170448,1723926643190,-17268.42652662,0.00011,2]
[335170449,1723926643201,-524.26,0.00011,2]
[335170453,1723926643930,-2445.69309449,0.00011,2]
[335170454,1723926643942,-6802.33893354,0.00011,2]
[335170455,1723926643954,-1805.0,0.00011,2]
[335170456,1723926643965,-317.58278286,0.00011,2]
[335170457,1723926643977,-69229.38194159,0.00011,2]
[335170463,1723926646028,-259.365467,0.00010899,2]
[335170464,1723926646037,-259.365467,0.00010899,2]
[335170465,1723926646054,-259.365467,0.00010899,2]
[335170466,1723926646064,-259.365467,0.00010899,2]
[335170467,1723926646073,-259.365467,0.00010899,2]
[335170468,1723926646083,-163052.13240892,0.00011,2]
[335170469,1723926646095,-376.87925389,0.00011,2]
[335170470,1723926646106,-2693.82653913,0.00011,2]
[335170471,1723926646124,-19999.736892,0.00011,2]
[335170472,1723926646137,-279.6363521,0.00011,2]
[335170473,1723926646149,-362.2774596,0.00011,2]
[335170474,1723926646161,-4778.87436627,0.00011,2]
[335170475,1723926646172,-4681.0,0.00011,2]
[335170476,1723926646184,-497.6992937,0.00011,2]
[335170477,1723926646470,-1612.31885782,0.00011,2]
[335170478,1723926646482,-587.2050527,0.00011,2]
[335170479,1723926646496,-1502.556,0.00011,2]
[335170480,1723926646507,-19608.1635984,0.00011,2]
[335170481,1723926646518,-436.81,0.00011,2]
[335170482,1723926646531,-1408.1140944,0.00011,2]
[335170483,1723926646544,-638.25,0.00011,2]
[335170484,1723926646555,-362162.45363938,0.00011,2]
[335170485,1723926646567,-1214.69466643,0.00011,2]
[335170487,1723926733845,419.26533857,9.943e-05,2]
[335170491,1723926942744,609.28,8.219e-05,2]
[335170492,1723926999968,298.09256283,9.962e-05,2]
[335170494,1723927485005,613.62,8.219e-05,2]
[335170498,1723927608378,150.0,9.888e-05,2]
[335170502,1723927629942,578.13,9.962e-05,2]
[335170512,1723927706006,172.82,9.944e-05,2]
[335170513,1723927754095,737.6,9.946e-05,2]
[335170514,1723927778757,827.22,9.948e-05,2]
[335170515,1723927802630,150.0,9.944e-05,2]
[335170527,1723927832093,-1453.41873983,9.994e-05,2]
[335170528,1723927832148,-213.58126017,9.994e-05,2]
[335170529,1723927832157,-686.41873783,9.995e-05,2]
[335170530,1723927832168,-414.92947483,9.995e-05,2]
[335170531,1723927832180,-2408.50178734,9.995e-05,2]
[335170532,1723927832189,-196.56350179,9.999e-05,2]
[335170533,1723927832198,-300.0,9.999e-05,2]
[335170534,1723927832207,-176.97088212,0.0001,2]
[335170535,1723927832227,-476.73687298,0.0001,2]
[335170536,1723927832237,-2112.46328814,0.0001,2]
[335170537,1723927832247,-550.0,0.0001,2]
[335170538,1723927832257,-194.37,0.00010013,2]
[335170539,1723927832266,-262.4,0.00010033,2]
[335170540,1723927832275,-173.21,0.00010112,2]
[335170541,1723927832284,-613.62,0.00010475,2]
[335170542,1723927832294,-1311.18449488,0.000107,2]
[335170543,1723927832304,-305.92874023,0.000107,2]
[335170544,1723927832319,-444.82956489,0.000107,2]
[335170545,1723927832328,-500.69212315,0.00010799,2]
[335170547,1723927832339,-499.30787685,0.00010799,2]
[335170549,1723927832349,-110.55556977,0.00010799,2]
[335170552,1723927832360,-1331.44143023,0.00010799,2]
[335170553,1723927832370,-1821.1711726,0.00010799,2]